lending/lending_fUSD_20240710
["ID","MTS","AMOUNT","RATE_DAILY","PERIOD"]
[331657868,1720607443529,-500.0,0.00013753,2]
[331657869,1720607443539,-693.1,0.00013753,2]
[331657870,1720607443548,-531.85,0.00013753,2]
[331657871,1720607443558,-500.0,0.00013753,2]
[331657872,1720607443568,-500.0,0.00013753,2]
[331657873,1720607443579,-500.0,0.00013753,2]
[331657874,1720607443589,-1044.79,0.00013753,2]
[331657875,1720607443599,-500.0,0.00013753,2]
[331657876,1720607443610,-771.31,0.00013753,2]
[331657877,1720607443621,-532.63,0.00013753,2]
[331657878,1720607443631,-500.0,0.00013753,2]
[331657879,1720607443642,-500.0,0.00013753,2]
[331657880,1720607443652,-624.51,0.00013753,2]
[331657881,1720607443663,-1230.19,0.00013753,2]
[331657882,1720607443673,-500.0,0.00013753,2]
[331657883,1720607443683,-500.0,0.00013753,2]
[331657884,1720607443692,-500.0,0.00013753,2]
[331657885,1720607443703,-501.39,0.00013753,2]
[331657886,1720607443712,-500.0,0.00013753,2]
[331657887,1720607443723,-850.25,0.00013753,2]
[331657888,1720607443732,-500.0,0.00013753,2]
[331657889,1720607443741,-500.0,0.00013753,2]
[331657890,1720607443751,-500.0,0.00013753,2]
[331657891,1720607443760,-500.0,0.00013753,2]
[331657892,1720607443770,-500.0,0.00013753,2]
[331657893,1720607443780,-502.69,0.00013753,2]
[331657894,1720607443790,-520.12,0.00013753,2]
[331657895,1720607443801,-571.16,0.00013753,2]
[331657896,1720607443812,-390.66259602,0.00013753,2]
[331657897,1720607443822,-610.26,0.00013753,2]
[331657898,1720607443832,-500.0,0.00013753,2]
[331657899,1720607443842,-1046.61,0.00013753,2]
[331657900,1720607443853,-500.0,0.00013753,2]
[331657901,1720607443863,-500.0,0.00013753,2]
[331657902,1720607443873,-500.0,0.00013753,2]
[331657903,1720607443883,-500.0,0.00013753,2]
[331657904,1720607443893,-898.09,0.00013753,2]
[331657905,1720607443903,-500.0,0.00013753,2]
[331657906,1720607443913,-902.28,0.00013753,2]
[331657907,1720607443934,-500.0,0.00013753,2]
[331657908,1720607443946,-500.0,0.00013753,2]
[331657909,1720607443956,-500.0,0.00013753,2]
[331657910,1720607443966,-500.0,0.00013753,2]
[331657911,1720607443977,-771.35,0.00013753,2]
[331657912,1720607443986,-500.0,0.00013753,2]
[331657913,1720607443996,-500.0,0.00013753,2]
[331657914,1720607444006,-299.90115969,0.00013753,2]
[331657915,1720607444015,-500.0,0.00013753,2]
[331657916,1720607444025,-500.0,0.00013753,2]
[331657917,1720607444034,-500.0,0.00013753,2]
[331657918,1720607444048,-500.0,0.00013753,2]
[331657919,1720607444058,-500.0,0.00013753,2]
[331657920,1720607444068,-682.8,0.00013753,2]
[331657921,1720607444078,-628.85,0.00013753,2]
[331657922,1720607444087,-500.0,0.00013753,2]
[331657923,1720607444097,-534.15,0.00013753,2]
[331657924,1720607444107,-500.0,0.00013753,2]
[331657925,1720607444117,-500.0,0.00013753,2]
[331657926,1720607444126,-799.53,0.00013753,2]
[331657927,1720607444136,-500.0,0.00013753,2]
[331657928,1720607444146,-500.0,0.00013753,2]
[331657929,1720607444155,-500.0,0.00013753,2]
[331657930,1720607444165,-500.0,0.00013753,2]
[331657931,1720607444174,-500.0,0.00013753,2]
[331657932,1720607444184,-531.88,0.00013753,2]
[331657933,1720607444193,-720.98,0.00013753,2]
[331657934,1720607444203,-500.0,0.00013753,2]
[331657935,1720607444213,-500.0,0.00013753,2]
[331657936,1720607444223,-500.0,0.00013753,2]
[331657937,1720607444232,-500.0,0.00013753,2]
[331657938,1720607444242,-500.0,0.00013753,2]
[331657939,1720607444251,-500.0,0.00013753,2]
[331657940,1720607444262,-500.0,0.00013753,2]
[331657941,1720607444272,-500.0,0.00013753,2]
[331657942,1720607444283,-756.42,0.00013753,2]
[331657943,1720607444293,-729.74,0.00013753,2]
[331657944,1720607444303,-649.84,0.00013753,2]
[331657945,1720607444313,-500.0,0.00013753,2]
[331657946,1720607444323,-500.0,0.00013753,2]
[331657947,1720607444332,-1000.0,0.00013753,2]
[331657948,1720607444342,-500.0,0.00013753,2]
[331657949,1720607444352,-500.0,0.00013753,2]
[331657950,1720607444363,-700.01,0.00013753,2]
[331657951,1720607444376,-500.0,0.00013753,2]
[331657952,1720607444387,-500.0,0.00013753,2]
[331657953,1720607444397,-500.0,0.00013753,2]
[331657954,1720607444407,-500.0,0.00013753,2]
[331657955,1720607444416,-500.0,0.00013753,2]
[331657956,1720607444427,-500.0,0.00013753,2]
[331657957,1720607444437,-320.86,0.00013753,2]
[331657958,1720607444446,-507.65,0.00013753,2]
[331657959,1720607444457,-555.78,0.00013753,2]
[331657960,1720607444468,-712.52,0.00013753,2]
[331657961,1720607444478,-500.0,0.00013753,2]
[331657962,1720607444489,-500.0,0.00013753,2]
[331657963,1720607444499,-979.13,0.00013753,2]
[331657964,1720607444508,-500.0,0.00013753,2]
[331657965,1720607444518,-522.93,0.00013753,2]
[331657966,1720607444528,-941.37,0.00013753,2]
[331657967,1720607444538,-500.0,0.00013753,2]
[331657968,1720607444548,-500.0,0.00013753,2]
[331657969,1720607444558,-500.0,0.00013753,2]
[331657970,1720607444568,-500.0,0.00013753,2]
[331657971,1720607444578,-500.0,0.00013753,2]
[331657972,1720607444588,-500.0,0.00013753,2]
[331657973,1720607444598,-530.34,0.00013753,2]
[331657974,1720607444608,-500.0,0.00013753,2]
[331657975,1720607444618,-500.0,0.00013753,2]
[331657976,1720607444627,-545.01,0.00013753,2]
[331657977,1720607444637,-500.0,0.00013753,2]
[331657978,1720607444647,-548.72,0.00013753,2]
[331657979,1720607444661,-500.0,0.00013753,2]
[331657980,1720607444671,-404.28607869,0.00013753,2]
[331657981,1720607444681,-648.1991586,0.00013753,2]
[331657982,1720607444691,-500.0,0.00013753,2]
[331657983,1720607444701,-500.0,0.00013753,2]
[331657984,1720607444712,-769.89,0.00013753,2]
[331657985,1720607444722,-500.0,0.00013753,2]
[331657986,1720607444732,-500.0,0.00013753,2]
[331657987,1720607444742,-518.72,0.00013753,2]
[331657988,1720607444751,-726.28,0.00013753,2]
[331657989,1720607444761,-500.0,0.00013753,2]
[331657990,1720607444771,-500.0,0.00013753,2]
[331657991,1720607444781,-500.0,0.00013753,2]
[331657992,1720607444790,-1271.09,0.00013753,2]
[331657993,1720607444800,-724.3,0.00013753,2]
[331657994,1720607444809,-710.55,0.00013753,2]
[331657995,1720607444819,-563.81,0.00013753,2]
[331657996,1720607444829,-500.0,0.00013753,2]
[331657997,1720607444838,-500.0,0.00013753,2]
[331657998,1720607444848,-500.0,0.00013753,2]
[331657999,1720607444857,-606.96,0.00013753,2]
[331658000,1720607444867,-500.0,0.00013753,2]
[331658001,1720607444877,-1019.22,0.00013753,2]
[331658002,1720607444887,-500.0,0.00013753,2]
[331658003,1720607444896,-500.0,0.00013753,2]
[331658004,1720607444906,-500.0,0.00013753,2]
[331658005,1720607444916,-625.29,0.00013753,2]
[331658006,1720607444926,-593.07,0.00013753,2]
[331658007,1720607444936,-500.0,0.00013753,2]
[331658008,1720607444947,-500.0,0.00013753,2]
[331658009,1720607444957,-537.61700455,0.00013753,2]
[331658010,1720607444967,-500.0,0.00013753,2]
[331658011,1720607444977,-500.0,0.00013753,2]
[331658012,1720607444986,-567.02,0.00013753,2]
[331658013,1720607444996,-500.0,0.00013753,2]
[331658014,1720607445006,-500.0,0.00013753,2]
[331658015,1720607445016,-500.0,0.00013753,2]
[331658016,1720607445025,-860.65,0.00013753,2]
[331658017,1720607445035,-500.0,0.00013753,2]
[331658018,1720607445045,-500.0,0.00013753,2]
[331658019,1720607445055,-420.81568716,0.00013753,2]
[331658020,1720607445065,-856.16,0.00013753,2]
[331658021,1720607445075,-500.0,0.00013753,2]
[331658022,1720607445084,-625.69,0.00013753,2]
[331658023,1720607445094,-964.77,0.00013753,2]
[331658024,1720607445103,-537.15,0.00013753,2]
[331658025,1720607445113,-500.0,0.00013753,2]
[331658026,1720607445123,-587.67,0.00013753,2]
[331658027,1720607445132,-500.0,0.00013753,2]
[331658028,1720607445142,-500.0,0.00013753,2]
[331658029,1720607445152,-720.4,0.00013753,2]
[331658030,1720607445162,-500.0,0.00013753,2]
[331658031,1720607445172,-500.0,0.00013753,2]
[331658032,1720607445181,-500.0,0.00013753,2]
[331658033,1720607445191,-500.0,0.00013753,2]
[331658034,1720607445203,-503.48,0.00013753,2]
[331658035,1720607445213,-500.0,0.00013753,2]
[331658036,1720607445223,-500.0,0.00013753,2]
[331658037,1720607445233,-500.0,0.00013753,2]
[331658038,1720607445243,-549.87,0.00013753,2]
[331658039,1720607445252,-659.82,0.00013753,2]
[331658040,1720607445262,-500.0,0.00013753,2]
[331658041,1720607445272,-500.0,0.00013753,2]
[331658042,1720607445282,-500.0,0.00013753,2]
[331658043,1720607445292,-697.16,0.00013753,2]
[331658044,1720607445301,-542.07,0.00013753,2]
[331658045,1720607445311,-639.74,0.00013753,2]
[331658046,1720607445321,-500.0,0.00013753,2]
[331658047,1720607445330,-746.15,0.00013753,2]
[331658048,1720607445339,-500.0,0.00013753,2]
[331658049,1720607445349,-500.0,0.00013753,2]
[331658050,1720607445358,-574.76,0.00013753,2]
[331658051,1720607445368,-500.0,0.00013753,2]
[331658052,1720607445378,-500.0,0.00013753,2]
[331658053,1720607445388,-500.0,0.00013753,2]
[331658054,1720607445397,-500.0,0.00013753,2]
[331658055,1720607445407,-531.01,0.00013753,2]
[331658056,1720607445416,-500.0,0.00013753,2]
[331658057,1720607445426,-830.24,0.00013753,2]
[331658058,1720607445436,-816.77,0.00013753,2]
[331658059,1720607445446,-1571.3,0.00013753,2]
[331658060,1720607445456,-508.87,0.00013753,2]
[331658061,1720607445466,-1335.28,0.00013753,2]
[331658062,1720607445476,-500.0,0.00013753,2]
[331658063,1720607445486,-694.67,0.00013753,2]
[331658064,1720607445496,-500.0,0.00013753,2]
[331658065,1720607445506,-994.3,0.00013753,2]
[331658066,1720607445516,-500.0,0.00013753,2]
[331658067,1720607445526,-642.81015812,0.00013753,2]
[331658068,1720607445535,-500.0,0.00013753,2]
[331658069,1720607445545,-475.54157565,0.00013753,2]
[331658070,1720607445555,-500.0,0.00013753,2]
[331658071,1720607445565,-500.0,0.00013753,2]
[331658072,1720607445576,-649.53,0.00013753,2]
[331658073,1720607445586,-500.0,0.00013753,2]
[331658074,1720607445595,-500.0,0.00013753,2]
[331658075,1720607445605,-500.0,0.00013753,2]
[331658076,1720607445615,-556.1,0.00013753,2]
[331658077,1720607445625,-653.84,0.00013753,2]
[331658078,1720607445635,-572.83,0.00013753,2]
[331658079,1720607445644,-612.8,0.00013753,2]
[331658080,1720607445653,-500.0,0.00013753,2]
[331658081,1720607445663,-500.0,0.00013753,2]
[331658082,1720607445673,-526.51,0.00013753,2]
[331658083,1720607445682,-500.0,0.00013753,2]
[331658084,1720607445692,-500.0,0.00013753,2]
[331658086,1720607445702,-949.66,0.00013753,2]
[331658088,1720607445711,-500.0,0.00013753,2]
[331658090,1720607445722,-500.0,0.00013753,2]
[331658092,1720607445732,-500.0,0.00013753,2]
[331658094,1720607445742,-500.0,0.00013753,2]
[331658096,1720607445755,-500.0,0.00013753,2]
[331658098,1720607445772,-592.88,0.00013753,2]
[331658101,1720607445783,-500.0,0.00013753,2]
[331658103,1720607445792,-500.0,0.00013753,2]
[331658104,1720607445802,-852.22,0.00013753,2]
[331658106,1720607445812,-500.0,0.00013753,2]
[331658109,1720607445822,-500.0,0.00013753,2]
[331658111,1720607445832,-525.06,0.00013753,2]
[331658112,1720607445842,-3622.38,0.00013753,2]
[331658114,1720607445851,-500.0,0.00013753,2]
[331658116,1720607445860,-696.85,0.00013753,2]
[331658117,1720607445870,-500.0,0.00013753,2]
[331658118,1720607445879,-500.0,0.00013753,2]
[331658119,1720607445889,-500.0,0.00013753,2]
[331658120,1720607445899,-500.0,0.00013753,2]
[331658121,1720607445908,-500.0,0.00013753,2]
[331658122,1720607445918,-500.0,0.00013753,2]
[331658123,1720607445927,-544.45,0.00013753,2]
[331658124,1720607445937,-760.7,0.00013753,2]
[331658125,1720607445946,-500.0,0.00013753,2]
[331658126,1720607445956,-500.0,0.00013753,2]
[331658127,1720607445965,-500.0,0.00013753,2]
[331658128,1720607445975,-545.50434311,0.00013753,2]
[331658129,1720607445985,-500.0,0.00013753,2]
[331658130,1720607445995,-882.92,0.00013753,2]
[331658131,1720607446008,-500.0,0.00013753,2]
[331658132,1720607446017,-967.46,0.00013753,2]
[331658133,1720607446027,-500.0,0.00013753,2]
[331658134,1720607446037,-500.0,0.00013753,2]
[331658135,1720607446048,-751.17,0.00013753,2]
[331658136,1720607446058,-500.0,0.00013753,2]
[331658137,1720607446067,-500.0,0.00013753,2]
[331658138,1720607446079,-500.0,0.00013753,2]
[331658139,1720607446089,-197.98890182,0.00013753,2]
[331658140,1720607446099,-634.9,0.00013753,2]
[331658141,1720607446108,-624.58,0.00013753,2]
[331658142,1720607446118,-600.35,0.00013753,2]
[331658143,1720607446127,-500.0,0.00013753,2]
[331658144,1720607446136,-797.7,0.00013753,2]
[331658145,1720607446145,-500.0,0.00013753,2]
[331658146,1720607446155,-500.0,0.00013753,2]
[331658147,1720607446165,-821.13,0.00013753,2]
[331658148,1720607446175,-500.0,0.00013753,2]
[331658149,1720607446184,-500.0,0.00013753,2]
[331658150,1720607446193,-1973.42,0.00013753,2]
[331658151,1720607446202,-2150.6,0.00013753,2]
[331658152,1720607446211,-500.0,0.00013753,2]
[331658153,1720607446223,-500.0,0.00013753,2]
[331658154,1720607446233,-500.0,0.00013753,2]
[331658155,1720607446242,-472.51500763,0.00013753,2]
[331658156,1720607446252,-422.075,0.00013753,2]
[331658157,1720607446262,-1011.9,0.00013753,2]
[331658158,1720607446272,-902.73,0.00013753,2]
[331658159,1720607446285,-500.0,0.00013753,2]
[331658160,1720607446295,-500.0,0.00013753,2]
[331658161,1720607446305,-174.4115841,0.00013753,2]
[331658162,1720607446317,-1788.44,0.00013753,2]
[331658163,1720607446328,-500.0,0.00013753,2]
[331658164,1720607446337,-653.72,0.00013753,2]
[331658165,1720607446346,-1544.77,0.00013753,2]
[331658166,1720607446355,-500.0,0.00013753,2]
[331658167,1720607446364,-500.0,0.00013753,2]
[331658168,1720607446374,-500.0,0.00013753,2]
[331658169,1720607446383,-1364.43,0.00013753,2]
[331658170,1720607446393,-500.0,0.00013753,2]
[331658171,1720607446403,-624.43,0.00013753,2]
[331658172,1720607446412,-944.92,0.00013753,2]
[331658173,1720607446421,-700.19,0.00013753,2]
[331658174,1720607446431,-500.0,0.00013753,2]
[331658175,1720607446441,-500.0,0.00013753,2]
[331658176,1720607446450,-927.16,0.00013753,2]
[331658177,1720607446459,-500.0,0.00013753,2]
[331658178,1720607446469,-600.94,0.00013753,2]
[331658179,1720607446481,-500.0,0.00013753,2]
[331658180,1720607446491,-500.0,0.00013753,2]
[331658181,1720607446500,-592.59,0.00013753,2]
[331658182,1720607446510,-500.0,0.00013753,2]
[331658183,1720607446519,-3411.46,0.00013753,2]
[331658184,1720607446528,-517.84,0.00013753,2]
[331658185,1720607446538,-500.0,0.00013753,2]
[331658186,1720607446547,-500.0,0.00013753,2]
[331658187,1720607446557,-593.31,0.00013753,2]
[331658188,1720607446566,-500.0,0.00013753,2]
[331658189,1720607446575,-1862.28,0.00013753,2]
[331658190,1720607446585,-500.0,0.00013753,2]
[331658191,1720607446594,-500.0,0.00013753,2]
[331658192,1720607446603,-584.35,0.00013753,2]
[331658193,1720607446612,-500.0,0.00013753,2]
[331658194,1720607446622,-500.0,0.00013753,2]
[331658195,1720607446631,-590.8,0.00013753,2]
[331658196,1720607446641,-500.0,0.00013753,2]
[331658197,1720607446651,-785.48,0.00013753,2]
[331658198,1720607446660,-535.28,0.00013753,2]
[331658199,1720607446670,-791.85,0.00013753,2]
[331658200,1720607446680,-352.97133992,0.00013753,2]
[331658201,1720607446690,-899.0,0.00013753,2]
[331658202,1720607446699,-540.32399875,0.00013753,2]
[331658203,1720607446708,-500.0,0.00013753,2]
[331658204,1720607446718,-500.0,0.00013753,2]
[331658205,1720607446731,-500.0,0.00013753,2]
[331658206,1720607446741,-500.0,0.00013753,2]
[331658207,1720607446751,-500.0,0.00013753,2]
[331658208,1720607446762,-901.21,0.00013753,2]
[331658209,1720607446772,-500.0,0.00013753,2]
[331658210,1720607446781,-566.8,0.00013753,2]
[331658211,1720607446791,-861.38,0.00013753,2]
[331658212,1720607446801,-500.0,0.00013753,2]
[331658213,1720607446810,-500.0,0.00013753,2]
[331658214,1720607446820,-738.29,0.00013753,2]
[331658215,1720607446831,-500.0,0.00013753,2]
[331658216,1720607446840,-546.76,0.00013753,2]
[331658217,1720607447097,-500.0,0.00013753,2]
[331658218,1720607447106,-500.0,0.00013753,2]
[331658219,1720607447116,-1235.33,0.00013753,2]
[331658220,1720607447125,-500.0,0.00013753,2]
[331658221,1720607447135,-814.57,0.00013753,2]
[331658222,1720607447145,-500.0,0.00013753,2]
[331658223,1720607447154,-500.0,0.00013753,2]
[331658224,1720607447163,-500.0,0.00013753,2]
[331658225,1720607447173,-612.37,0.00013753,2]
[331658226,1720607447182,-646.88029558,0.00013753,2]
[331658227,1720607447191,-1071.29,0.00013753,2]
[331658228,1720607447201,-545.21,0.00013753,2]
[331658229,1720607447210,-500.0,0.00013753,2]
[331658230,1720607447219,-651.83,0.00013753,2]
[331658231,1720607447232,-500.0,0.00013753,2]
[331658232,1720607447241,-500.0,0.00013753,2]
[331658233,1720607447252,-721.86,0.00013753,2]
[331658234,1720607447264,-503.53,0.00013753,2]
[331658235,1720607447274,-603.85,0.00013753,2]
[331658236,1720607447284,-500.0,0.00013753,2]
[331658237,1720607447293,-1117.22,0.00013753,2]
[331658239,1720607447302,-1294.61,0.00013753,2]
[331658241,1720607447311,-500.0,0.00013753,2]
[331658243,1720607447321,-500.0,0.00013753,2]
[331658245,1720607447330,-500.0,0.00013753,2]
[331658246,1720607447339,-500.0,0.00013753,2]
[331658247,1720607447348,-443.02255598,0.00013753,2]
[331658248,1720607447358,-500.0,0.00013753,2]
[331658249,1720607447367,-500.0,0.00013753,2]
[331658250,1720607447378,-945.2,0.00013753,2]
[331658251,1720607447388,-500.0,0.00013753,2]
[331658252,1720607447397,-680.23,0.00013753,2]
[331658253,1720607447407,-500.0,0.00013753,2]
[331658254,1720607447416,-857.81,0.00013753,2]
[331658255,1720607447425,-500.0,0.00013753,2]
[331658256,1720607447435,-500.0,0.00013753,2]
[331658257,1720607447445,-667.08,0.00013753,2]
[331658258,1720607447454,-500.0,0.00013753,2]
[331658259,1720607447464,-500.0,0.00013753,2]
[331658260,1720607447474,-500.0,0.00013753,2]
[331658261,1720607447483,-653.37,0.00013753,2]
[331658262,1720607447493,-500.0,0.00013753,2]
[331658263,1720607447503,-500.0,0.00013753,2]
[331658264,1720607447513,-500.0,0.00013753,2]
[331658265,1720607447522,-500.0,0.00013753,2]
[331658266,1720607447532,-571.43,0.00013753,2]
[331658267,1720607447542,-1030.08,0.00013753,2]
[331658268,1720607447552,-500.0,0.00013753,2]
[331658269,1720607447562,-6010.16,0.00013753,2]
[331658270,1720607447572,-500.0,0.00013753,2]
[331658271,1720607447581,-1090.35,0.00013753,2]
[331658272,1720607447591,-500.0,0.00013753,2]
[331658273,1720607447600,-810.52,0.00013753,2]
[331658274,1720607447610,-725.92,0.00013753,2]
[331658275,1720607447619,-500.0,0.00013753,2]
[331658276,1720607447628,-500.0,0.00013753,2]
[331658277,1720607447638,-500.0,0.00013753,2]
[331658278,1720607447648,-500.0,0.00013753,2]
[331658279,1720607447657,-978.74,0.00013753,2]
[331658280,1720607447668,-500.0,0.00013753,2]
[331658281,1720607447678,-500.0,0.00013753,2]
[331658282,1720607447687,-500.0,0.00013753,2]
[331658283,1720607447696,-500.0,0.00013753,2]
[331658284,1720607447705,-500.0,0.00013753,2]
[331658285,1720607447715,-500.0,0.00013753,2]
[331658286,1720607447725,-1125.49,0.00013753,2]
[331658287,1720607447734,-500.0,0.00013753,2]
[331658288,1720607447745,-500.0,0.00013753,2]
[331658289,1720607447755,-500.0,0.00013753,2]
[331658290,1720607447765,-707.13,0.00013753,2]
[331658291,1720607447774,-605.9,0.00013753,2]
[331658292,1720607447784,-500.0,0.00013753,2]
[331658293,1720607447793,-500.0,0.00013753,2]
[331658294,1720607447803,-5800.0,0.00013755,2]
[331658295,1720607447812,-150.0,0.0001376,2]
[331658296,1720607447822,-5800.0,0.00013764,2]
[331658297,1720607447832,-5800.0,0.00013773,2]
[331658298,1720607447841,-5800.0,0.00013781,2]
[331658299,1720607447850,-500.0,0.00013786,2]
[331658300,1720607447859,-5800.0,0.0001379,2]
[331658301,1720607447869,-6259.77732831,0.0001379,2]
[331658302,1720607447879,-6259.77732824,0.0001379,2]
[331658303,1720607447888,-500.0,0.00013794,2]
[331658304,1720607447898,-5800.0,0.00013798,2]
[331658305,1720607447907,-632.0,0.00013799,2]
[331658306,1720607447917,-500.0,0.00013803,2]
[331658307,1720607447927,-5800.0,0.00013807,2]
[331658308,1720607447936,-500.0,0.00013808,2]
[331658309,1720607447947,-500.0,0.00013808,2]
[331658310,1720607447956,-500.0,0.00013808,2]
[331658311,1720607447966,-500.0,0.00013808,2]
[331658312,1720607447976,-500.0,0.00013808,2]
[331658313,1720607447986,-500.0,0.00013808,2]
[331658314,1720607447995,-595.1,0.00013808,2]
[331658315,1720607448005,-500.0,0.00013808,2]
[331658316,1720607448014,-500.0,0.00013808,2]
[331658317,1720607448024,-500.0,0.00013808,2]
[331658318,1720607448036,-500.0,0.00013808,2]
[331658319,1720607448046,-500.0,0.00013808,2]
[331658320,1720607448055,-557.47,0.00013808,2]
[331658321,1720607448065,-500.0,0.00013808,2]
[331658322,1720607448075,-511.68,0.00013808,2]
[331658323,1720607448084,-500.0,0.00013808,2]
[331658324,1720607448094,-500.0,0.00013808,2]
[331658325,1720607448103,-500.0,0.00013808,2]
[331658326,1720607448112,-500.0,0.00013808,2]
[331658327,1720607448121,-500.0,0.00013808,2]
[331658328,1720607448131,-636.59,0.00013808,2]
[331658329,1720607448140,-500.0,0.00013808,2]
[331658330,1720607448149,-500.0,0.00013808,2]
[331658331,1720607448158,-500.0,0.00013808,2]
[331658332,1720607448168,-500.0,0.00013808,2]
[331658333,1720607448177,-500.0,0.00013808,2]
[331658334,1720607448186,-500.0,0.00013808,2]
[331658335,1720607448195,-500.0,0.00013808,2]
[331658336,1720607448204,-500.0,0.00013808,2]
[331658337,1720607448214,-500.0,0.00013808,2]
[331658338,1720607448224,-500.0,0.00013808,2]
[331658339,1720607448233,-500.0,0.00013808,2]
[331658340,1720607448243,-500.0,0.00013808,2]
[331658341,1720607448252,-500.0,0.00013808,2]
[331658342,1720607448262,-500.0,0.00013808,2]
[331658343,1720607448273,-404.20765941,0.00013808,2]
[331658344,1720607448282,-500.0,0.00013808,2]
[331658345,1720607448292,-583.36,0.00013808,2]
[331658346,1720607448301,-500.0,0.00013808,2]
[331658347,1720607448310,-500.0,0.00013808,2]
[331658348,1720607448320,-521.18,0.00013808,2]
[331658349,1720607448329,-500.0,0.00013808,2]
[331658350,1720607448339,-500.0,0.00013808,2]
[331658351,1720607448348,-500.0,0.00013808,2]
[331658352,1720607448357,-500.0,0.00013808,2]
[331658353,1720607448367,-500.0,0.00013808,2]
[331658354,1720607448378,-500.0,0.00013808,2]
[331658355,1720607448387,-500.0,0.00013808,2]
[331658356,1720607448397,-500.0,0.00013808,2]
[331658357,1720607448406,-500.0,0.00013808,2]
[331658358,1720607448416,-500.0,0.00013808,2]
[331658359,1720607448426,-500.0,0.00013808,2]
[331658360,1720607448439,-500.0,0.00013808,2]
[331658361,1720607448449,-500.0,0.00013808,2]
[331658362,1720607448460,-500.0,0.00013808,2]
[331658363,1720607448471,-500.0,0.00013808,2]
[331658364,1720607448481,-500.0,0.00013808,2]
[331658365,1720607448490,-500.0,0.00013808,2]
[331658366,1720607448499,-500.0,0.00013808,2]
[331658367,1720607448510,-500.0,0.00013808,2]
[331658368,1720607448520,-500.0,0.00013808,2]
[331658369,1720607448531,-740.95,0.00013808,2]
[331658370,1720607448542,-500.0,0.00013808,2]
[331658371,1720607448551,-500.0,0.00013808,2]
[331658372,1720607448562,-500.0,0.00013808,2]
[331658373,1720607448571,-500.0,0.00013808,2]
[331658374,1720607448580,-500.0,0.00013808,2]
[331658375,1720607448589,-500.0,0.00013808,2]
[331658376,1720607448599,-500.0,0.00013808,2]
[331658377,1720607448608,-500.0,0.00013808,2]
[331658378,1720607448618,-500.0,0.00013808,2]
[331658379,1720607448627,-500.0,0.00013808,2]
[331658380,1720607448636,-500.0,0.00013808,2]
[331658381,1720607448645,-500.0,0.00013808,2]
[331658382,1720607448655,-500.0,0.00013808,2]
[331658383,1720607448665,-307.62033679,0.00013808,2]
[331658384,1720607448675,-500.0,0.00013808,2]
[331658385,1720607448684,-500.0,0.00013808,2]
[331658386,1720607448694,-500.0,0.00013808,2]
[331658387,1720607448704,-595.45,0.00013808,2]